bitfinex-derivatives/quotes_BTCF0:USTF0_20251217
["timestamp","ask_amount","ask_price","bid_price","bid_amount"]
[1766000815224,0.003,85903.0,85901.0,9e-08]
[1766000815721,0.06633785,85918.0,85901.0,9e-08]
[1766000816431,0.06333785,85918.0,85901.0,9e-08]
[1766000816629,0.06333785,85918.0,85901.0,0.01164499]
[1766000816630,0.05,85918.0,85901.0,0.01164499]
[1766000817022,0.06369446,85918.0,85901.0,0.01164499]
[1766000817224,0.05,85918.0,85901.0,0.01164499]
[1766000817433,0.06329758,85918.0,85901.0,9e-08]
[1766000818325,0.0116446,85905.0,85901.0,9e-08]
[1766000818528,0.33965972,85911.0,85901.0,9e-08]
[1766000818529,0.0116447,85904.0,85901.0,9e-08]
[1766000819024,0.4,85903.0,85867.0,0.0216495]
[1766000819227,0.33965972,85900.0,85867.0,0.01]
[1766000819426,0.011647,85887.0,85867.0,0.01]
[1766000819626,0.35130482,85900.0,85867.0,0.01]
[1766000819938,0.0116448,85903.0,85870.0,0.33965972]
[1766000820140,0.00017469,85892.0,85876.0,0.0116483]
[1766000820342,0.00017469,85892.0,85875.0,0.00017469]
[1766000820521,0.0116464,85891.0,85875.0,0.00017469]
[1766000821137,0.33965972,85890.0,85875.0,0.00017469]
[1766000821339,0.01182089,85892.0,85875.0,0.00017469]
[1766000821539,0.00017469,85892.0,85880.0,0.0116477]
[1766000821737,0.00017469,85892.0,85875.0,0.00017469]
[1766000821738,0.00017469,85892.0,85881.0,0.0116476]
[1766000821926,0.00017469,85892.0,85883.0,0.0116473]
[1766000822131,0.00017469,85892.0,85875.0,0.00017469]
[1766000822132,0.00017469,85892.0,85880.0,0.0116477]
[1766000822436,0.00017469,85892.0,85875.0,0.00117469]
[1766000822637,0.00017469,85892.0,85875.0,0.00017469]
[1766000822829,0.0116465,85890.0,85875.0,0.00017469]
[1766000823230,0.0116468,85888.0,85875.0,0.00017469]
[1766000823937,0.00017469,85892.0,85875.0,0.00017469]
[1766000823938,0.0116469,85887.0,85875.0,0.00017469]
[1766000824243,0.33924757,85890.0,85875.0,4.69e-06]
[1766000824632,0.0116472,85885.0,85875.0,4.69e-06]
[1766000824942,0.0116472,85885.0,85875.0,0.00100469]
[1766000825440,0.0116472,85885.0,85875.0,4.69e-06]
[1766000826439,0.0116468,85888.0,85875.0,4.69e-06]
[1766000826935,0.02903007,85890.0,85875.0,4.69e-06]
[1766000827234,0.0116465,85890.0,85875.0,4.69e-06]
[1766000827440,0.2313778,85890.0,85875.0,4.69e-06]
[1766000827625,0.0116466,85889.0,85875.0,4.69e-06]
[1766000827827,0.2313778,85890.0,85875.0,4.69e-06]
[1766000828026,0.2313778,85890.0,85867.0,4.69e-06]
[1766000828233,0.0116475,85883.0,85867.0,4.69e-06]
[1766000828432,0.0116472,85885.0,85867.0,4.69e-06]
[1766000828935,0.0116472,85885.0,85875.0,0.001]
[1766000830143,0.0116472,85885.0,85871.0,0.00017469]
[1766000830840,0.0126472,85885.0,85871.0,0.00017469]
[1766000831438,0.0116481,85878.0,85871.0,0.00017469]
[1766000831638,0.0116488,85874.0,85871.0,9e-08]
[1766000831842,0.0116488,85874.0,85858.0,0.00232944]
[1766000831843,0.0116505,85861.0,85858.0,4.13e-06]
[1766000832040,0.0116496,85867.0,85858.0,4.13e-06]
[1766000832242,0.2313778,85870.0,85858.0,4.13e-06]
[1766000832439,0.0116499,85865.0,85858.0,4.13e-06]
[1766000832633,0.00126645,85878.0,85858.0,4.13e-06]
[1766000832842,0.0116487,85874.0,85859.0,0.00017469]
[1766000833241,0.00017469,85877.0,85860.0,0.2430283]
[1766000833546,0.00017469,85877.0,85865.0,0.0116498]
[1766000833848,0.00017469,85877.0,85867.0,0.0116496]
[1766000834048,0.001,85874.0,85867.0,0.0116496]
[1766000834235,0.001,85874.0,85863.0,0.0116501]
[1766000834440,0.00017469,85877.0,85860.0,0.2313778]
[1766000834644,0.00017469,85877.0,85860.0,0.002]
[1766000835450,0.00017469,85877.0,85861.0,0.0116504]
[1766000835848,0.00017469,85877.0,85860.0,0.2333778]
[1766000836043,0.00017469,85877.0,85865.0,0.0116498]
[1766000836245,0.00017469,85877.0,85867.0,0.001]
[1766000836844,4.69e-06,85877.0,85867.0,0.2313778]
[1766000837040,0.01,85889.0,85867.0,0.2313778]
[1766000837237,0.01,85889.0,85870.0,0.2313778]
[1766000837548,0.01,85889.0,85874.0,0.0116486]
[1766000837954,0.01,85889.0,85870.0,0.2313778]
[1766000838249,0.01,85889.0,85868.0,0.0116494]
[1766000840152,0.01,85889.0,85868.0,0.0126494]
[1766000840342,0.01,85889.0,85870.0,0.0116492]
[1766000840836,0.01,85889.0,85868.0,0.001]
[1766000841042,0.01,85889.0,85874.0,0.0116486]
[1766000841241,0.01,85889.0,85884.0,0.0116472]
[1766000841447,4.69e-06,85890.0,85881.0,0.0116476]
[1766000841749,4.69e-06,85890.0,85880.0,0.2313778]
[1766000842755,4.69e-06,85890.0,85885.0,0.0116471]
[1766000843453,0.0116431,85915.0,85888.0,0.0116467]
[1766000843652,0.0634841,85918.0,85890.0,0.2313778]
[1766000843840,0.15441708,85918.0,85890.0,0.2313778]
[1766000844157,0.0116433,85914.0,85890.0,0.2430242]
[1766000844450,0.00017469,85911.0,85893.0,0.00017469]
[1766000846152,0.2313778,85910.0,85893.0,0.00017469]
[1766000846341,0.2313778,85903.0,85893.0,0.00017469]
[1766000846547,0.0116457,85896.0,85893.0,9e-08]
[1766000847049,0.02482215,85896.0,85893.0,9e-08]
[1766000847759,0.2313778,85880.0,85856.0,0.011651]
[1766000848258,0.00017469,85882.0,85865.0,0.00017469]
[1766000849049,0.00017469,85882.0,85870.0,0.2430269]
[1766000849369,0.09092917,85895.0,85871.0,0.011649]
[1766000849755,0.01417645,85896.0,85873.0,0.0116487]
[1766000850159,0.001,85882.0,85870.0,0.243027]
[1766000850954,0.001,85882.0,85870.0,0.0116492]
[1766000851649,0.00017469,85885.0,85870.0,0.0116492]
[1766000851954,0.00017469,85885.0,85873.0,0.001]
[1766000852750,0.00017469,85885.0,85870.0,0.2323778]
[1766000853259,0.00017469,85885.0,85873.0,0.0116487]
[1766000853453,9e-08,85885.0,85873.0,0.001]
[1766000853658,9e-08,85885.0,85878.0,0.0116481]
[1766000853956,9e-08,85885.0,85875.0,0.0116485]
[1766000854161,9e-08,85885.0,85877.0,0.0116482]
[1766000854659,9e-08,85885.0,85882.0,0.0116475]
[1766000855158,9e-08,85885.0,85881.0,0.0116477]
[1766000855461,9e-08,85885.0,85884.0,0.0116473]
[1766000856061,9e-08,85885.0,85881.0,0.0116476]
[1766000856865,9e-08,85885.0,85883.0,0.0116474]
[1766000858956,9e-08,85885.0,85883.0,0.0126474]
[1766000859262,0.0116425,85919.0,85896.0,0.0116456]
[1766000859459,0.2313778,85920.0,85898.0,0.0116453]
[1766000859648,0.06333785,85918.0,85898.0,0.0116453]
[1766000859846,0.011643,85916.0,85892.0,0.0116461]
[1766000860062,0.06333785,85918.0,85900.0,0.2313778]
[1766000860063,0.00017469,85913.0,85900.0,0.2313778]
[1766000860357,0.00017469,85913.0,85903.0,0.0116447]
[1766000860556,0.00017469,85913.0,85906.0,0.0116443]
[1766000860860,0.00017469,85913.0,85903.0,0.0116447]
[1766000861352,0.00017469,85913.0,85900.0,0.2430229]
[1766000861547,0.00017469,85913.0,85902.0,0.0116448]
[1766000861756,0.00317469,85913.0,85902.0,0.0116448]
[1766000862158,0.00017469,85913.0,85900.0,0.2313778]
[1766000862353,0.00217469,85913.0,85900.0,0.2313778]
[1766000862764,0.00017469,85913.0,85900.0,0.2313778]
[1766000862959,0.00217469,85913.0,85900.0,0.2313778]
[1766000863163,9e-08,85918.0,85901.0,0.0116449]
[1766000863465,9e-08,85918.0,85911.0,0.0116435]
[1766000863664,9e-08,85918.0,85916.0,0.0116429]
[1766000864163,9e-08,85918.0,85913.0,0.0116433]
[1766000864766,9e-08,85918.0,85908.0,0.0116439]
[1766000864961,0.00200009,85918.0,85910.0,0.0116437]
[1766000866457,0.00200009,85918.0,85895.0,0.00017469]
[1766000866653,0.00200009,85918.0,85908.0,0.2313778]
[1766000866855,0.00200009,85918.0,85909.0,0.0116439]
[1766000867160,0.00100009,85918.0,85909.0,0.0116439]
[1766000867361,0.00100009,85918.0,85908.0,0.2313778]
[1766000867556,0.00100009,85918.0,85905.0,0.14048]
[1766000867769,0.00100009,85918.0,85900.0,0.2313778]
[1766000867970,0.00100009,85918.0,85901.0,0.32468]
[1766000868166,0.01264289,85918.0,85895.0,0.00017469]
[1766000868467,0.00100009,85918.0,85895.0,0.00017469]
[1766000868861,0.0116433,85914.0,85895.0,0.00017469]
[1766000869061,0.0116429,85917.0,85895.0,0.00017469]
[1766000870662,0.0116429,85917.0,85895.0,0.00117469]
[1766000871070,0.0116429,85917.0,85895.0,0.00017469]
[1766000871966,9e-08,85918.0,85895.0,0.00017469]
[1766000871967,0.2313778,85910.0,85895.0,0.00017469]
[1766000872174,0.0116447,85903.0,85895.0,4.69e-06]
[1766000872371,0.011645,85901.0,85895.0,4.69e-06]
[1766000872570,0.0116445,85905.0,85895.0,4.69e-06]
[1766000872963,0.0116442,85907.0,85895.0,4.69e-06]
[1766000874063,0.0116445,85905.0,85895.0,4.69e-06]
[1766000874876,0.0116447,85903.0,85895.0,4.69e-06]
[1766000875670,0.001,85907.0,85895.0,4.69e-06]
[1766000875671,0.0116456,85897.0,85895.0,4.69e-06]
[1766000875877,0.0116452,85900.0,85895.0,4.69e-06]
[1766000876064,0.001,85907.0,85895.0,4.69e-06]
[1766000876379,0.001,85905.0,85895.0,4.69e-06]
[1766000876678,0.011645,85902.0,85895.0,4.69e-06]
[1766000877071,0.002,85900.0,85895.0,4.69e-06]
[1766000877467,0.0116446,85904.0,85895.0,4.69e-06]
[1766000877668,0.002,85905.0,85895.0,4.69e-06]
[1766000878160,0.002,85900.0,85895.0,4.69e-06]
[1766000878367,0.00017,85910.0,85897.0,0.0116454]
[1766000879072,0.00017,85910.0,85895.0,4.69e-06]
[1766000879388,0.00017,85910.0,85896.0,0.0116456]
[1766000879577,0.00017,85910.0,85898.0,0.0116454]
[1766000879875,0.001,85905.0,85898.0,0.0116454]
[1766000880076,0.00017,85910.0,85895.0,4.69e-06]
[1766000880374,0.00017,85910.0,85900.0,0.011645]
[1766000880771,0.00017,85910.0,85902.0,0.0116448]
[1766000881072,0.00017,85910.0,85895.0,0.01165049]
[1766000881266,0.00017,85910.0,85901.0,0.0116449]
[1766000881670,9e-08,85918.0,85900.0,0.2313778]
[1766000881977,0.01,85922.0,85900.0,0.2313778]
[1766000881978,9e-08,85922.0,85917.0,0.0116428]
[1766000882178,9e-08,85922.0,85908.0,0.2313778]
[1766000882179,9e-08,85922.0,85916.0,0.0116429]
[1766000882472,9e-08,85922.0,85908.0,0.2313778]
[1766000882677,9e-08,85922.0,85916.0,0.0116428]
[1766000883478,9e-08,85922.0,85918.0,0.0116426]
[1766000883870,9e-08,85922.0,85908.0,0.2313778]
[1766000884071,9e-08,85922.0,85908.0,0.011644]
[1766000884278,0.00100009,85922.0,85919.0,0.0116424]
[1766000884577,9e-08,85922.0,85919.0,0.0116424]
[1766000885863,0.00232727,85938.0,85911.0,0.0116436]
[1766000885864,6e-08,85938.0,85933.0,0.0116405]
[1766000886275,6e-08,85938.0,85927.0,0.00017458]
[1766000886576,6e-08,85938.0,85929.0,0.0116412]
[1766000886780,6e-08,85938.0,85934.0,0.0116404]
[1766000886971,6e-08,85938.0,85930.0,0.011641]
[1766000887472,0.00300006,85938.0,85932.0,0.0116407]
[1766000887670,0.00300006,85938.0,85927.0,0.00017458]
[1766000887875,0.0116411,85930.0,85927.0,8e-08]
[1766000888066,0.00300006,85938.0,85927.0,8e-08]
[1766000888566,0.0116403,85936.0,85927.0,8e-08]
[1766000888772,0.00300006,85938.0,85927.0,8e-08]
[1766000888970,0.0116401,85937.0,85927.0,8e-08]
[1766000889172,0.00300006,85938.0,85927.0,8e-08]
[1766000889680,6e-08,85938.0,85930.0,0.001]
[1766000890269,6e-08,85938.0,85927.0,8e-08]
[1766000890270,6e-08,85938.0,85927.0,0.00100008]
[1766000890976,0.0116403,85936.0,85927.0,8e-08]
[1766000891275,6e-08,85938.0,85927.0,8e-08]
[1766000891476,6e-08,85938.0,85927.0,0.00100008]
[1766000892077,0.01164006,85938.0,85927.0,0.00100008]
[1766000893069,6e-08,85938.0,85927.0,8e-08]
[1766000893473,0.01164006,85938.0,85927.0,8e-08]
[1766000893871,0.0116405,85934.0,85927.0,8e-08]
[1766000894070,0.0116411,85930.0,85927.0,8e-08]
[1766000894273,0.0116433,85914.0,85894.0,0.02944333]
[1766000894478,0.0116441,85908.0,85894.0,0.02944333]
[1766000894688,0.0116437,85911.0,85889.0,0.00424]
[1766000895382,0.00017423,85909.0,85891.0,0.01182078]
[1766000895687,0.00017423,85909.0,85891.0,0.00017458]
[1766000896385,0.00017423,85909.0,85892.0,0.0116462]
[1766000896575,0.00017423,85909.0,85891.0,0.00017458]
[1766000896778,0.00017423,85909.0,85891.0,0.00217458]
[1766000897088,0.0116461,85893.0,85891.0,8e-08]
[1766000897291,0.011646,85894.0,85868.0,0.0116494]
[1766000897675,0.0116456,85897.0,85870.0,0.0116491]
[1766000897879,0.0116468,85888.0,85858.0,4.13e-06]
[1766000898179,0.33897087,85890.0,85875.0,0.00017458]
[1766000898486,0.0116478,85880.0,85858.0,4.13e-06]
[1766000898688,0.35061867,85880.0,85858.0,4.13e-06]
[1766000899391,0.33897087,85880.0,85860.0,0.00017468]
[1766000899691,0.33897087,85880.0,85868.0,0.002]
[1766000900192,0.35061867,85880.0,85860.0,0.00017468]
[1766000900377,0.33897087,85880.0,85860.0,0.00017468]
[1766000900890,0.33997087,85880.0,85860.0,0.00017468]
[1766000902088,0.001,85880.0,85860.0,0.00017468]
[1766000902288,0.0216467,85889.0,85864.0,0.0116499]
[1766000902289,0.01,85889.0,85864.0,0.0116499]
[1766000902687,0.01,85889.0,85860.0,0.33914555]
[1766000902884,0.01,85889.0,85869.0,0.0116492]
[1766000903087,0.01,85889.0,85876.0,0.0116483]
[1766000903285,0.01,85889.0,85873.0,0.0116487]
[1766000904180,0.01,85889.0,85862.0,0.0116503]
[1766000904790,0.00017458,85892.0,85870.0,0.33897087]
[1766000904989,0.00017458,85892.0,85877.0,0.0116482]
[1766000905301,0.00017458,85892.0,85879.0,0.0116479]
[1766000905691,0.33897087,85910.0,85871.0,0.73264]
[1766000905895,0.0116445,85905.0,85881.0,0.0116476]
[1766000906196,0.02901222,85912.0,85874.0,0.0116486]
[1766000906388,0.09250598,85910.0,85891.0,0.0116463]
[1766000906584,0.09250598,85910.0,85887.0,0.0116468]
[1766000906786,0.00017468,85907.0,85890.0,0.00017468]
[1766000907095,0.00017468,85907.0,85890.0,0.01182118]
[1766000907398,0.00017468,85907.0,85891.0,0.04168]
[1766000907598,0.00017468,85907.0,85892.0,0.0116462]
[1766000908594,0.00017468,85907.0,85891.0,0.04168]
[1766000908795,0.00017468,85907.0,85890.0,0.01182108]
[1766000909099,0.00017468,85907.0,85890.0,0.33914555]
[1766000909297,0.01,85922.0,85892.0,0.002]
[1766000909502,0.01,85922.0,85908.0,0.0116439]
[1766000909803,0.02334343,85922.0,85901.0,0.0116449]
[1766000909994,0.01,85922.0,85903.0,0.0116447]
[1766000910389,0.00017447,85921.0,85903.0,0.0116447]
[1766000910597,0.00017447,85921.0,85905.0,0.0116444]
[1766000911197,0.00017447,85921.0,85892.0,0.001]
[1766000911394,0.00017447,85921.0,85893.0,0.23628]
[1766000911594,0.00017447,85921.0,85901.0,0.0116449]
[1766000913405,0.00017447,85921.0,85903.0,0.0116447]
[1766000914104,0.00017447,85921.0,85894.0,0.4664]
[1766000914304,0.00017447,85921.0,85900.0,0.33897087]
[1766000914608,0.00017447,85921.0,85912.0,0.0116434]
[1766000915310,0.00017447,85921.0,85909.0,0.0116438]
[1766000915810,0.00017447,85921.0,85908.0,0.00017468]
[1766000916109,0.00017447,85921.0,85914.0,0.0116431]
[1766000916303,4.47e-06,85922.0,85920.0,2.0]
[1766000917297,0.00100447,85922.0,85920.0,2.0]
[1766000917499,6e-08,85938.0,85920.0,2.0116423]
[1766000917803,6e-08,85938.0,85920.0,2.0]
[1766000918204,6e-08,85938.0,85920.0,2.0116424]
[1766000918809,6e-08,85938.0,85923.0,0.011642]
[1766000919207,6e-08,85938.0,85925.0,0.0116416]
[1766000919400,6e-08,85938.0,85927.0,0.0116414]
[1766000919602,6e-08,85938.0,85920.0,2.0]
[1766000919805,6e-08,85938.0,85921.0,0.0116422]
[1766000920203,6e-08,85938.0,85920.0,2.001]
[1766000920405,6e-08,85938.0,85922.0,0.0116421]
[1766000920604,0.00200006,85938.0,85922.0,0.0116421]
[1766000920806,0.00200006,85938.0,85920.0,2.0]
[1766000921008,0.00200006,85938.0,85921.0,0.0116422]
[1766000921206,0.00100006,85938.0,85921.0,0.0116422]
[1766000921402,0.0116402,85937.0,85920.0,2.0]
[1766000921603,0.01264006,85938.0,85920.0,2.0]
[1766000921903,0.33897087,85930.0,85920.0,1.2842348]
[1766000923010,0.00100006,85938.0,85920.0,1.2842348]
[1766000923220,0.00232619,85978.0,85928.0,0.33897087]
[1766000923404,0.00232619,85978.0,85960.0,0.33897087]
[1766000923606,0.00232619,85978.0,85961.0,0.4934]
[1766000923806,0.03376,86009.0,85968.0,0.33897087]
[1766000924002,0.00232511,86018.0,85991.0,0.0116327]
[1766000924213,0.00232511,86018.0,85990.0,0.33897087]
[1766000924430,0.00232511,86018.0,86004.0,0.011631]
[1766000924611,0.00232511,86018.0,86002.0,0.00017447]
[1766000924913,0.01,86022.0,86009.0,0.0116303]
[1766000925112,0.33897087,86020.0,85968.0,0.01302229]
[1766000925418,0.33897087,86020.0,85987.0,0.0116332]
[1766000925619,0.01,86022.0,85956.0,0.0116375]
[1766000925814,0.33897087,86010.0,85982.0,0.011634]
[1766000926117,0.00017375,86005.0,85987.0,0.00017447]
[1766000926802,0.33897087,86000.0,85987.0,0.00017447]
[1766000927011,0.0116317,85999.0,85987.0,0.00017447]
[1766000927210,0.35060247,86000.0,85987.0,4.47e-06]
[1766000927409,0.33897087,86000.0,85987.0,4.47e-06]
[1766000927711,0.00017375,86005.0,85987.0,4.47e-06]
[1766000927912,0.0116317,85999.0,85987.0,4.47e-06]
[1766000928107,0.2061117,85999.0,85987.0,4.47e-06]
[1766000928309,0.41136,85998.0,85987.0,4.47e-06]
[1766000928914,0.0116317,85999.0,85987.0,4.47e-06]
[1766000929314,0.0116317,85999.0,85984.0,0.00017447]
[1766000929821,0.0116321,85997.0,85984.0,0.00017447]
[1766000930216,0.0116319,85998.0,85984.0,0.00017447]
[1766000930518,0.0116333,85987.0,85984.0,7e-08]
[1766000930908,0.59532,85999.0,85968.0,0.0116359]
[1766000930909,0.001,85999.0,85968.0,0.0116359]
[1766000931114,0.0116323,85995.0,85967.0,0.01]
[1766000931415,0.33897087,85990.0,85967.0,0.01]
[1766000931720,0.33897087,85990.0,85967.0,0.0216359]
[1766000932017,0.00017447,85987.0,85970.0,0.01181007]
[1766000932219,0.00017447,85987.0,85970.0,0.00017447]
[1766000932814,0.00117447,85987.0,85970.0,0.00017447]
[1766000933221,0.00017447,85987.0,85970.0,0.00017447]
[1766000933421,0.00017447,85987.0,85970.0,0.00117447]
[1766000933628,0.00017447,85987.0,85971.0,0.0116355]
[1766000934218,0.00017447,85987.0,85970.0,0.00117447]
[1766000934609,0.00017447,85987.0,85970.0,0.01281007]
[1766000934918,0.00017447,85987.0,85971.0,0.0116354]
[1766000935411,0.00017447,85987.0,85974.0,0.011635]
[1766000935611,0.00017447,85987.0,85970.0,0.01180997]
[1766000935811,0.00017447,85987.0,85971.0,0.001]
[1766000936522,0.00017447,85987.0,85971.0,0.0126354]
[1766000936923,0.00017447,85987.0,85974.0,0.011635]
[1766000937311,0.00017447,85987.0,85971.0,0.001]
[1766000937821,0.00017447,85987.0,85974.0,0.0116351]
[1766000938325,0.0116314,86001.0,86000.0,6e-08]
[1766000938514,0.214,86001.0,85971.0,0.001]
[1766000938710,0.214,86001.0,85967.0,0.01]
[1766000938711,0.33897087,85990.0,85967.0,0.01]
[1766000938909,0.0116351,85974.0,85954.0,0.00248]
[1766000939114,0.35060517,85980.0,85954.0,0.00248]
[1766000939315,0.00017447,85976.0,85958.0,0.00017447]
[1766000939714,0.011635,85975.0,85958.0,0.00017447]
[1766000939917,0.00017447,85976.0,85958.0,0.00017447]
[1766000940517,0.01172342,85976.0,85958.0,0.00017447]
[1766000940827,0.33897087,85968.0,85954.0,7e-08]
[1766000941021,0.04110425,85976.0,85954.0,7e-08]
[1766000941326,0.0116363,85966.0,85954.0,7e-08]
[1766000941521,0.0116367,85963.0,85954.0,7e-08]
[1766000941728,0.33897087,85970.0,85958.0,0.001]
[1766000941926,0.0116358,85969.0,85958.0,0.001]
[1766000942327,0.0116361,85967.0,85955.0,0.00017447]
[1766000942918,0.33997087,85970.0,85955.0,0.00017447]
[1766000943124,0.0116358,85969.0,85933.0,0.01]
[1766000943328,0.33897087,85950.0,85933.0,0.01]
[1766000943829,0.44279299,85950.0,85921.0,0.0116422]
[1766000944228,0.44279299,85950.0,85920.0,0.00013576]
[1766000944229,0.00017447,85944.0,85927.0,0.01181587]
[1766000944432,0.00017447,85944.0,85934.0,0.0116404]
[1766000944721,0.01,85955.0,85934.0,0.0116404]
[1766000944722,0.03884646,85955.0,85934.0,0.0116404]
[1766000944928,0.01,85955.0,85934.0,0.0116404]
[1766000945727,0.01,85955.0,85927.0,0.00017447]
[1766000945728,0.00017447,85953.0,85927.0,0.01181587]
[1766000946025,0.00017447,85953.0,85929.0,0.0116411]
[1766000946225,0.00017447,85953.0,85934.0,0.002]
[1766000946629,0.00017447,85953.0,85930.0,0.33897087]
[1766000946822,4.47e-06,85953.0,85945.0,0.0116389]
[1766000947126,0.42285087,85980.0,85950.0,0.0116382]
[1766000947521,0.011635,85975.0,85950.0,0.0116382]
[1766000947724,0.09347841,85975.0,85942.0,0.0116393]
[1766000947922,0.0116345,85979.0,85942.0,0.0116393]
[1766000948122,0.00017447,85967.0,85954.0,0.0116377]
[1766000948628,0.00017447,85967.0,85950.0,0.00017447]
[1766000948629,7e-08,85967.0,85950.0,0.33914534]
[1766000948834,0.03941849,85989.0,85952.0,0.011638]
[1766000949031,0.13277002,85989.0,85969.0,0.0116357]
[1766000949340,0.13277002,85989.0,85965.0,0.0116362]
[1766000949341,0.01,85989.0,85965.0,0.0116362]
[1766000949726,0.00017375,85986.0,85971.0,0.0116354]
[1766000949926,0.00017375,85986.0,85968.0,0.01181037]
[1766000950120,0.00017375,85986.0,85968.0,0.00017447]
[1766000950326,0.00017375,85986.0,85969.0,0.002]
[1766000951027,0.00232619,85978.0,85969.0,0.002]
[1766000951823,0.00232619,85978.0,85971.0,0.001]
[1766000952332,0.00232619,85978.0,85968.0,0.00017447]
[1766000952538,0.00232619,85978.0,85969.0,0.001]
[1766000952926,0.00232619,85978.0,85968.0,0.00017447]
[1766000953126,0.00332619,85978.0,85968.0,7e-08]
[1766000953326,0.0116352,85973.0,85968.0,7e-08]
[1766000953732,0.0116348,85977.0,85968.0,7e-08]
[1766000953937,0.23416791,85978.0,85968.0,7e-08]
[1766000954229,0.0116356,85971.0,85968.0,7e-08]
[1766000954626,0.0116356,85971.0,85930.0,0.23084172]
[1766000954627,0.0116377,85955.0,85930.0,0.23084172]
[1766000954827,0.0116389,85946.0,85920.0,0.24261978]
[1766000955034,0.23084172,85950.0,85920.0,0.23097748]
[1766000955328,0.0116367,85962.0,85920.0,0.00013576]
[1766000955329,0.23084172,85943.0,85920.0,0.00013576]
[1766000955530,0.23084172,85943.0,85922.0,0.0116421]
[1766000955733,0.00017447,85947.0,85929.0,0.00017447]
[1766000956040,0.01190904,85947.0,85929.0,0.00017447]
[1766000956233,0.01190904,85947.0,85933.0,0.011]
[1766000956434,0.09492155,85947.0,85939.0,0.0116397]
[1766000956637,0.00017447,85947.0,85937.0,0.23084172]
[1766000956936,0.00017447,85947.0,85942.0,0.0116393]
[1766000957140,0.00017447,85947.0,85939.0,0.0116398]
[1766000957833,0.00017447,85947.0,85933.0,0.01]
[1766000958041,0.00017447,85947.0,85933.0,0.0216406]
[1766000958224,0.00017447,85947.0,85933.0,0.01]
[1766000958629,0.0116394,85942.0,85929.0,0.00017447]
[1766000958833,0.23084172,85943.0,85929.0,4.47e-06]
[1766000959034,0.23084172,85943.0,85920.0,0.00013576]
[1766000959341,0.01164,85938.0,85920.0,0.00013576]
[1766000959732,0.00017447,85947.0,85928.0,0.0116413]
[1766000960034,0.00017447,85947.0,85920.0,0.23097748]
[1766000960035,0.00017447,85947.0,85929.0,0.00017447]
[1766000961130,0.00017447,85947.0,85930.0,0.0116409]
[1766000961430,0.00017447,85947.0,85929.0,0.00017447]
[1766000962039,0.00117447,85947.0,85929.0,0.00017447]
[1766000962339,0.00017447,85947.0,85930.0,0.23084172]
[1766000962536,0.00117447,85947.0,85930.0,0.23084172]
[1766000962841,0.00117447,85947.0,85936.0,0.0116402]
[1766000963344,0.00117447,85947.0,85933.0,0.0116406]
[1766000963529,0.00017447,85947.0,85929.0,0.00017447]
[1766000963734,0.23084172,85940.0,85929.0,0.00017447]
[1766000964038,0.00117447,85947.0,85929.0,0.00017447]
[1766000964341,0.00117447,85947.0,85929.0,0.01181557]
[1766000964636,0.00117447,85947.0,85929.0,0.00017447]
[1766000964844,0.01,85955.0,85937.0,0.23098872]
[1766000965427,0.01,85955.0,85945.0,0.23098872]
[1766000965637,0.0116351,85974.0,85945.0,0.23098872]
[1766000965941,0.00017447,85968.0,85951.0,0.00017447]
[1766000966534,0.00017447,85968.0,85951.0,0.01181257]
[1766000967137,0.00017447,85968.0,85954.0,0.0116378]
[1766000967730,4.47e-06,85968.0,85960.0,0.0116369]
[1766000968339,4.47e-06,85968.0,85952.0,0.011638]
[1766000968536,4.47e-06,85968.0,85951.0,0.03581447]
[1766000968537,4.47e-06,85968.0,85951.0,0.03681447]
[1766000968741,4.47e-06,85968.0,85959.0,0.0116371]
[1766000969043,4.47e-06,85968.0,85962.0,0.0116367]
[1766000969748,4.47e-06,85968.0,85964.0,0.0116363]
[1766000970132,4.47e-06,85968.0,85951.0,0.03881447]
[1766000970133,4.47e-06,85968.0,85959.0,0.0116371]
[1766000970344,4.47e-06,85968.0,85962.0,0.001]
[1766000971130,0.0116373,85958.0,85951.0,0.00017447]
[1766000971428,0.23098872,85961.0,85951.0,0.00017447]
[1766000971633,0.0116365,85964.0,85951.0,0.00017447]
[1766000972235,0.0116361,85967.0,85951.0,0.00017447]
[1766000972537,0.0116365,85964.0,85951.0,0.00217447]
[1766000972939,4.47e-06,85968.0,85951.0,0.00217447]
[1766000972940,0.0116361,85967.0,85951.0,0.00217447]
[1766000973235,0.0116361,85967.0,85951.0,0.00017447]
[1766000973641,4.47e-06,85968.0,85951.0,0.00017447]
[1766000975145,4.47e-06,85968.0,85957.0,0.0116373]
[1766000975537,4.47e-06,85968.0,85959.0,0.0116371]
[1766000975735,4.47e-06,85968.0,85951.0,0.00017447]
[1766000975736,4.47e-06,85968.0,85953.0,0.0116378]
[1766000975941,4.47e-06,85968.0,85951.0,0.00217447]
[1766000976530,4.47e-06,85968.0,85959.0,0.001]
[1766000977040,4.47e-06,85968.0,85964.0,0.0116364]
[1766000977440,4.47e-06,85968.0,85966.0,0.0116362]
[1766000978048,6.6e-07,85978.0,85966.0,0.0116362]
[1766000978632,6.6e-07,85978.0,85964.0,0.0116364]
[1766000980046,6.6e-07,85978.0,85968.0,0.0116359]
[1766000980350,6.6e-07,85978.0,85960.0,0.23098872]
[1766000980351,0.01174494,85988.0,85965.0,0.0116362]
[1766000980649,0.01174494,85988.0,85967.0,0.011636]
[1766000980835,0.1058606,85988.0,85964.0,0.0116364]
[1766000981041,0.01174494,85988.0,85960.0,0.23098872]
[1766000981341,0.01,85989.0,85970.0,0.23098872]
[1766000982342,0.01,85989.0,85970.0,0.23198872]
[1766000982652,0.01,85989.0,85980.0,0.0116342]
[1766000982949,0.01,85989.0,85970.0,0.0126356]
[1766000983249,0.01,85989.0,85970.0,0.23198872]
[1766000983450,0.0216331,85989.0,85965.0,0.00017447]
[1766000983654,0.01,85989.0,85970.0,0.001]
[1766000983946,0.01,85989.0,85971.0,0.0116355]
[1766000984458,0.0216332,85989.0,85970.0,0.001]
[1766000984849,0.01,85989.0,85970.0,0.001]
[1766000985043,0.01,85989.0,85965.0,0.00017447]
[1766000985349,0.01,85989.0,85970.0,0.001]
[1766000985751,0.0116334,85987.0,85965.0,0.00017447]
[1766000986344,0.01,85989.0,85965.0,0.00117447]
[1766000987053,0.0216332,85989.0,85965.0,0.01281067]
[1766000987442,0.0216332,85989.0,85967.0,0.011636]
[1766000987654,0.0216332,85989.0,85965.0,0.00117447]
[1766000987850,0.0116336,85985.0,85965.0,0.00017447]
[1766000988058,0.01,85989.0,85965.0,0.00117447]
[1766000988348,0.23098872,85980.0,85965.0,0.00117447]
[1766000988553,0.23098872,85980.0,85965.0,4.47e-06]
[1766000988950,0.0116352,85974.0,85965.0,4.47e-06]
[1766000989139,0.23098872,85980.0,85965.0,4.47e-06]
[1766000989346,0.01,85989.0,85965.0,4.47e-06]